fUST/lending_fUST_20251011
["ID","MTS","AMOUNT","RATE_DAILY","PERIOD"]
[390858054,1760179850481,-500.0,0.00024657,9]
[390858056,1760179850491,-500.0,0.00024657,9]
[390858058,1760179850500,-500.0,0.00024657,9]
[390858060,1760179850509,-481.2835209,0.00024657,9]
[390858062,1760179850519,-500.0,0.00024657,9]
[390858064,1760179850528,-500.0,0.00024657,9]
[390858066,1760179850537,-500.0,0.00024657,9]
[390858068,1760179850547,-500.0,0.00024657,9]
[390858070,1760179850556,-500.0,0.00024657,9]
[390858072,1760179850566,-500.0,0.00024657,9]
[390858074,1760179850575,-500.0,0.00024657,9]
[390858076,1760179850584,-500.0,0.00024657,9]
[390858078,1760179850594,-500.0,0.00024657,9]
[390858080,1760179850603,-500.0,0.00024657,9]
[390858082,1760179850612,-616.0,0.00024657,9]
[390858084,1760179850622,-356.48,0.00024657,9]
[390858086,1760179850631,-355.59496413,0.00024657,9]
[390858088,1760179850640,-511.81,0.00024657,9]
[390858090,1760179850651,-500.0,0.00024657,9]
[390858092,1760179850660,-484.91051738,0.00024657,9]
[390858094,1760179850669,-200.0,0.00024657,10]
[390858096,1760179850678,-200.0,0.00024657,10]
[390858098,1760179850687,-200.0,0.00024657,10]
[390858100,1760179850697,-500.22270471,0.00024657,9]
[390858102,1760179850707,-200.0,0.00024657,10]
[390858104,1760179850716,-200.0,0.00024657,10]
[390858106,1760179850725,-500.0,0.00024657,9]
[390858108,1760179850735,-171.462379,0.00024657,10]
[390858110,1760179850744,-500.0,0.00024657,9]
[390858112,1760179850753,-500.0,0.00024657,9]
[390858115,1760179850763,-500.0,0.00024657,9]
[390858117,1760179850772,-500.0,0.00024657,9]
[390858119,1760179850781,-500.0,0.00024657,9]
[390858121,1760179850791,-500.0,0.00024657,9]
[390858122,1760179850800,-500.0,0.00024657,9]
[390858125,1760179850812,-441.05795509,0.00024657,9]
[390858127,1760179850822,-500.0,0.00024657,9]
[390858129,1760179850832,-500.0,0.00024657,9]
[390858131,1760179850842,-500.0,0.00024657,9]
[390858133,1760179850853,-500.0,0.00024657,9]
[390858135,1760179850862,-500.0,0.00024657,9]
[390858137,1760179850872,-500.0,0.00024657,9]
[390858139,1760179850882,-500.0,0.00024657,9]
[390858141,1760179850891,-500.0,0.00024657,9]
[390858143,1760179850901,-500.0,0.00024657,9]
[390858145,1760179850910,-500.0,0.00024657,9]
[390858147,1760179850919,-500.0,0.00024657,9]
[390858149,1760179850929,-500.0,0.00024657,9]
[390858151,1760179850939,-500.0,0.00024657,9]
[390858153,1760179850949,-569.48,0.00024657,9]
[390858155,1760179850958,-500.0,0.00024657,9]
[390858157,1760179850968,-500.0,0.00024657,9]
[390858159,1760179850978,-500.0,0.00024657,9]
[390858161,1760179850987,-328.56,0.00024657,9]
[390858163,1760179850996,-500.0,0.00024657,9]
[390858165,1760179851006,-500.0,0.00024657,9]
[390858167,1760179851016,-500.0,0.00024657,9]
[390858169,1760179851025,-500.0,0.00024657,9]
[390858171,1760179851035,-500.0,0.00024657,9]
[390858173,1760179851044,-500.0,0.00024657,9]
[390858175,1760179851054,-500.0,0.00024657,9]
[390858177,1760179851064,-500.0,0.00024657,9]
[390858179,1760179851074,-500.0,0.00024657,9]
[390858181,1760179851087,-500.0,0.00024657,9]
[390858183,1760179851096,-500.0,0.00024657,9]
[390858185,1760179851106,-500.0,0.00024657,9]
[390858187,1760179851117,-500.0,0.00024657,9]
[390858189,1760179851127,-500.0,0.00024657,9]
[390858191,1760179851137,-500.0,0.00024657,9]
[390858193,1760179851147,-500.0,0.00024657,9]
[390858195,1760179851157,-500.0,0.00024657,9]
[390858197,1760179851167,-205.7,0.00024657,9]
[390858199,1760179851176,-500.0,0.00024657,9]
[390858201,1760179851186,-500.0,0.00024657,9]
[390858203,1760179851195,-500.0,0.00024657,9]
[390858205,1760179851205,-500.0,0.00024657,9]
[390858207,1760179851214,-203.75,0.00024657,9]
[390858209,1760179851225,-500.0,0.00024657,9]
[390858211,1760179851234,-500.0,0.00024657,9]
[390858213,1760179851244,-500.0,0.00024657,9]
[390858215,1760179851253,-500.0,0.00024657,9]
[390858217,1760179851263,-500.0,0.00024657,9]
[390858219,1760179851271,-500.0,0.00024657,9]
[390858221,1760179851281,-500.0,0.00024657,9]
[390858223,1760179851290,-500.0,0.00024657,9]
[390858226,1760179851300,-225.83490352,0.00024657,9]
[390858228,1760179851310,-500.0,0.00024657,9]
[390858230,1760179851320,-500.0,0.00024657,9]
[390858232,1760179851329,-500.0,0.00024657,9]
[390858234,1760179851339,-500.0,0.00024657,9]
[390858236,1760179851349,-500.0,0.00024657,9]
[390858238,1760179851358,-188.18,0.00024657,9]
[390858240,1760179851368,-500.0,0.00024657,9]
[390858242,1760179851378,-500.0,0.00024657,9]
[390858244,1760179851387,-500.0,0.00024657,9]
[390858246,1760179851398,-500.0,0.00024657,9]
[390858248,1760179851408,-500.0,0.00024657,9]
[390858250,1760179851418,-500.0,0.00024657,9]
[390858252,1760179851427,-500.0,0.00024657,9]
[390858254,1760179851436,-500.0,0.00024657,9]
[390858256,1760179851446,-500.0,0.00024657,9]
[390858258,1760179851456,-500.0,0.00024657,9]
[390858260,1760179851465,-500.0,0.00024657,9]
[390858262,1760179851474,-500.0,0.00024657,9]
[390858264,1760179851484,-500.0,0.00024657,9]
[390858266,1760179851493,-500.0,0.00024657,9]
[390858268,1760179851503,-500.0,0.00024657,9]
[390858270,1760179851512,-500.0,0.00024657,9]
[390858272,1760179851521,-500.0,0.00024657,9]
[390858275,1760179851531,-500.0,0.00024657,9]
[390858277,1760179851540,-500.0,0.00024657,9]
[390858279,1760179851550,-500.0,0.00024657,9]
[390858281,1760179851559,-500.0,0.00024657,9]
[390858283,1760179851568,-500.0,0.00024657,9]
[390858285,1760179851577,-500.0,0.00024657,9]
[390858287,1760179851586,-500.0,0.00024657,9]
[390858289,1760179851595,-500.0,0.00024657,9]
[390858291,1760179851604,-500.0,0.00024657,9]
[390858293,1760179851613,-500.0,0.00024657,9]
[390858295,1760179851622,-269.16,0.00024657,9]
[390858297,1760179851631,-500.0,0.00024657,9]
[390858299,1760179851640,-500.0,0.00024657,9]
[390858301,1760179851649,-500.0,0.00024657,9]
[390858303,1760179851659,-410.12300156,0.00024657,9]
[390858305,1760179851668,-500.0,0.00024657,9]
[390858307,1760179851677,-500.0,0.00024657,9]
[390858309,1760179851686,-500.0,0.00024657,9]
[390858311,1760179851696,-500.0,0.00024657,9]
[390858313,1760179851705,-500.0,0.00024657,9]
[390858315,1760179851714,-500.0,0.00024657,9]
[390858317,1760179851723,-500.0,0.00024657,9]
[390858319,1760179851732,-500.0,0.00024657,9]
[390858321,1760179851741,-500.0,0.00024657,9]
[390858323,1760179851750,-500.0,0.00024657,9]
[390858325,1760179851759,-500.0,0.00024657,9]
[390858327,1760179851767,-500.0,0.00024657,9]
[390858329,1760179851776,-500.0,0.00024657,9]
[390858331,1760179851786,-500.0,0.00024657,9]
[390858333,1760179851795,-500.0,0.00024657,9]
[390858335,1760179851804,-500.0,0.00024657,9]
[390858337,1760179851814,-500.0,0.00024657,9]
[390858339,1760179851823,-500.0,0.00024657,9]
[390858341,1760179851832,-500.0,0.00024657,9]
[390858343,1760179851841,-500.0,0.00024657,9]
[390858345,1760179851850,-500.0,0.00024657,9]
[390858347,1760179851859,-466.07722607,0.00024657,9]
[390858349,1760179851868,-500.0,0.00024657,9]
[390858351,1760179851877,-500.0,0.00024657,9]
[390858353,1760179851887,-500.0,0.00024657,9]
[390858355,1760179851896,-500.0,0.00024657,9]
[390858357,1760179851905,-500.0,0.00024657,9]
[390858359,1760179851914,-545.32,0.00024657,9]
[390858361,1760179851923,-500.0,0.00024657,9]
[390858363,1760179851933,-622.96,0.00024657,9]
[390858365,1760179851943,-500.0,0.00024657,9]
[390858367,1760179851952,-500.0,0.00024672,9]
[390858368,1760179851961,-500.0,0.00024672,9]
[390858370,1760179851970,-631.23,0.00024672,9]
[390858372,1760179851980,-500.0,0.00024672,9]
[390858374,1760179851989,-500.0,0.00024673,2]
[390858376,1760179851999,-361.69385993,0.00024673,2]
[390858379,1760179852009,-500.0,0.00024673,2]
[390858381,1760179852019,-500.0,0.00024673,2]
[390858383,1760179852028,-500.0,0.00024673,2]
[390858385,1760179852037,-500.0,0.00024673,2]
[390858387,1760179852047,-501.08365373,0.00024673,2]
[390858389,1760179852057,-500.0,0.00024673,2]
[390858391,1760179852066,-502.01206102,0.00024673,2]
[390858393,1760179852080,-500.0,0.00024673,2]
[390858395,1760179852089,-298.08050243,0.00024693,2]
[390858397,1760179852098,-160.0,0.00024693,2]
[390858399,1760179852107,-2609.37557469,0.00024742,2]
[390858401,1760179852117,-151.0,0.00024765,2]
[390858403,1760179852126,-151.0,0.00024765,2]
[390858405,1760179852135,-151.0,0.00024765,2]
[390858407,1760179852145,-18603.8837,0.00024765,2]
[390858409,1760179852154,-151.0,0.00024765,2]
[390858411,1760179852164,-151.0,0.00024765,2]
[390858413,1760179852173,-151.0,0.00024765,2]
[390858415,1760179852183,-151.0,0.00024765,2]
[390858417,1760179852192,-151.0,0.00024765,2]
[390858419,1760179852202,-202.08639383,0.00024765,2]
[390858421,1760179852211,-151.0,0.00024765,2]
[390858423,1760179852220,-151.0,0.00024765,2]
[390858425,1760179852230,-151.0,0.00024765,2]
[390858427,1760179852240,-250.0,0.00024765,2]
[390858429,1760179852249,-151.0,0.00024765,2]
[390858431,1760179852259,-250.0,0.00024765,2]
[390858433,1760179852268,-250.0,0.00024765,2]
[390858435,1760179852277,-151.0,0.00024765,2]
[390858437,1760179852286,-151.0,0.00024765,2]
[390858439,1760179852295,-250.0,0.00024765,2]
[390858441,1760179852305,-250.0,0.00024765,2]
[390858443,1760179852315,-250.0,0.00024765,2]
[390858445,1760179852324,-250.0,0.00024765,2]
[390858447,1760179852334,-250.0,0.00024765,2]
[390858449,1760179852343,-250.0,0.00024765,2]
[390858451,1760179852352,-250.0,0.00024765,2]
[390858453,1760179852361,-250.0,0.00024765,2]
[390858455,1760179852370,-250.0,0.00024765,2]
[390858457,1760179852380,-500.0,0.00024831,9]
[390858459,1760179852389,-500.0,0.00024873,2]
[390858461,1760179852399,-161.52818085,0.00024873,2]
[390858463,1760179852408,-151.0,0.00024876,2]
[390858465,1760179852417,-151.0,0.00024876,2]
[390858467,1760179852427,-500.0,0.00024899,2]
[390858469,1760179852438,-500.0,0.00024899,2]
[390858471,1760179852447,-538.95158294,0.00024899,2]
[390858473,1760179852456,-159.24643834,0.00024899,2]
[390858475,1760179852465,-500.0,0.00024899,2]
[390858477,1760179852474,-368454.402598,0.000249,2]
[390858479,1760179852483,-151.0,0.00024931,2]
[390858481,1760179852492,-151.0,0.00024931,2]
[390858483,1760179852501,-151.0,0.00024986,2]
[390858485,1760179852511,-5608.3047801,0.00024996,2]
[390858487,1760179852520,-151.0,0.0002504,2]
[390858489,1760179852529,-151.0,0.00025095,2]
[390858491,1760179852540,-200.8,0.000251,7]
[390858493,1760179852550,-345.24188632,0.00025105,9]
[390858495,1760179852562,-1070.81427335,0.00025148,2]
[390858497,1760179852571,-1000.0,0.00025148,2]
[390858502,1760179852611,-1000.0,0.00025148,2]
[390858504,1760179852621,-151.0,0.0002515,2]
[390858506,1760179852630,-847.32388718,0.00025221,2]
[390858508,1760179852639,-500.0,0.00025221,2]
[390858510,1760179852647,-1000.0,0.00025221,2]
[390858512,1760179852656,-162.54991404,0.00025221,2]
[390858514,1760179852665,-1000.0,0.00025221,2]
[390858516,1760179852674,-1000.0,0.00025221,2]
[390858518,1760179852683,-7562.92385989,0.00025313,2]
[390858520,1760179852692,-170.20489478,0.00025421,2]
[390858522,1760179852701,-168.24612147,0.00025579,2]
[390858524,1760179852711,-314.0,0.00025633,2]
[390858525,1760179852719,-500.0,0.00025696,2]
[390858526,1760179852728,-1010.99151939,0.00025696,2]
[390858527,1760179852737,-505.15323595,0.00025768,2]
[390858528,1760179852746,-1500.0,0.00025768,2]
[390858529,1760179852756,-314.0,0.00025899,7]
[390858530,1760179852765,-314.0,0.00025904,2]
[390858531,1760179852773,-2312.56,0.00025956,2]
[390858532,1760179852782,-314.0,0.00026014,2]
[390858533,1760179852791,-314.0,0.00026016,2]
[390858534,1760179852801,-8982.25,0.00026027,2]
[390858535,1760179852810,-154.712517,0.00026048,9]
[390858536,1760179852819,-152.19818,0.00026048,9]
[390858537,1760179852828,-151.326531,0.00026048,9]
[390858538,1760179852837,-155.030808,0.00026048,9]
[390858539,1760179852846,-155.030809,0.00026048,9]
[390858540,1760179852855,-151.326529,0.00026048,9]
[390858541,1760179852863,-155.030807,0.00026048,9]
[390858542,1760179852872,-314.0,0.00026119,2]
[390858543,1760179852881,-314.0,0.00026147,2]
[390858544,1760179852891,-2000.0,0.00026316,2]
[390858545,1760179852900,-1140.079755,0.00026676,2]
[390858546,1760179852909,-314.0,0.00026757,7]
[390858547,1760179852918,-154.712517,0.00026795,3]
[390858548,1760179852927,-152.19818,0.00026795,3]
[390858549,1760179852936,-155.030808,0.00026795,3]
[390858550,1760179852944,-314.0,0.00026851,2]
[390858551,1760179852954,-2500.0,0.00026864,2]
[390858552,1760179852962,-8982.25,0.00027123,4]
[390858553,1760179852971,-314.0,0.00027345,2]
[390858554,1760179852980,-314.0,0.00027368,2]
[390858555,1760179852989,-267.3,0.00027397,49]
[390858556,1760179852999,-9286.62,0.000274,2]
[390858557,1760179853008,-4208.83,0.000274,2]
[390858558,1760179853017,-3000.0,0.00027412,5]
[390858559,1760179853026,-314.0,0.00027451,7]
[390858560,1760179853035,-168.0,0.00027544,2]
[390858561,1760179853044,-2000.0,0.00027657,120]
[390858562,1760179853054,-2000.0,0.00027657,120]
[390858563,1760179853063,-2000.0,0.00027657,120]
[390858564,1760179853072,-2000.0,0.00027657,120]
[390858565,1760179853086,-2000.0,0.00027657,120]
[390858566,1760179853096,-2000.0,0.00027657,120]
[390858567,1760179853105,-2000.0,0.00027657,120]
[390858568,1760179853114,-2000.0,0.00027657,120]
[390858569,1760179853125,-2000.0,0.00027657,120]
[390858570,1760179853134,-2000.0,0.00027657,120]
[390858571,1760179853144,-2000.0,0.00027657,120]
[390858572,1760179853154,-2000.0,0.00027657,120]
[390858573,1760179853163,-2000.0,0.00027657,120]
[390858574,1760179853172,-2000.0,0.00027657,120]
[390858575,1760179853181,-1340.292,0.00027657,120]
[390858576,1760179853191,-314.0,0.00027672,2]
[390858577,1760179853200,-2775.08,0.00027686,2]
[390858578,1760179853209,-168.24612147,0.00027753,2]
[390858579,1760179853219,-399.64322456,0.00027786,2]
[390858580,1760179853227,-508.384,0.00027807,120]
[390858581,1760179853236,-1000.0,0.00027807,120]
[390858582,1760179853246,-1000.0,0.00027807,120]
[390858583,1760179853255,-456.524,0.00027807,120]
[390858584,1760179853265,-194.0,0.0002784,19]
[390858585,1760179853274,-314.0,0.000279,2]
[390858586,1760179853283,-314.0,0.00027909,2]
[390858587,1760179853293,-3500.0,0.0002796,5]
[390858588,1760179853303,-314.0,0.00027994,2]
[390858589,1760179853312,-399.64322454,0.00028024,2]
[390858590,1760179853321,-314.0,0.00028043,2]
[390858591,1760179853331,-314.0,0.00028068,2]
[390858592,1760179853340,-500.0,0.00028218,9]
[390858593,1760179853350,-321.57,0.00028218,9]
[390858594,1760179853359,-631.23,0.00028218,9]
[390858595,1760179853368,-502.12205632,0.00028218,9]
[390858596,1760179853378,-8982.25,0.00028219,6]
[390858597,1760179853387,-399.64322454,0.00028262,2]
[390858598,1760179853396,-399.64322454,0.000285,2]
[390858599,1760179853406,-4000.0,0.00028508,5]
[390858600,1760179853416,-166.3901461,0.00028657,2]
[390858601,1760179853426,-981.732,0.00028697,2]
[390858602,1760179853435,-630.0,0.00028697,2]
[390858603,1760179853445,-2159.0,0.00028697,2]
[390858604,1760179853455,-150.0,0.00028697,2]
[390858605,1760179853465,-4196.0,0.00028697,2]
[390858606,1760179853475,-4208.83,0.000287,2]
[390858607,1760179853484,-399.64322454,0.00028738,2]
[390858608,1760179853493,-500.0,0.00028767,60]
[390858609,1760179853502,-500.0,0.00028767,60]
[390858610,1760179853512,-500.0,0.00028767,60]
[390858611,1760179853521,-500.0,0.00028767,60]
[390858612,1760179853531,-500.0,0.00028767,60]
[390858613,1760179853540,-644.54,0.00028767,60]
[390858614,1760179853553,-399.64322454,0.00028975,2]
[390858615,1760179853563,-1016.76,0.00029,2]
[390858617,1760179853574,-4500.0,0.00029056,5]
[390858618,1760179853584,-1016.76,0.00029174,2]
[390858619,1760179853593,-391.9198272,0.00029205,30]
[390858620,1760179853604,-391.9198272,0.00029205,30]
[390858621,1760179853614,-391.9198272,0.00029205,30]
[390858622,1760179853623,-391.9198272,0.00029205,30]
[390858623,1760179853634,-391.9198272,0.00029205,30]
[390858624,1760179853643,-399.64322454,0.00029213,2]
[390858625,1760179853654,-1464.61888875,0.00029226,2]
[390858626,1760179853663,-9286.62,0.000293,2]
[390858627,1760179853673,-8982.25,0.00029315,8]
[390858628,1760179853682,-192.1325648,0.00029342,30]
[390858629,1760179853691,-327.714206,0.00029342,30]
[390858630,1760179853700,-297.8851395,0.00029342,30]
[390858631,1760179853710,-153.0,0.00029342,30]
[390858632,1760179853720,-591.6713613,0.00029342,30]
[390858633,1760179853729,-297.8851395,0.00029342,30]
[390858634,1760179853739,-588.4106815,0.00029342,30]
[390858635,1760179853749,-297.8851395,0.00029342,30]
[390858636,1760179853758,-588.4106815,0.00029342,30]
[390858637,1760179853768,-189.7226975,0.00029342,30]
[390858638,1760179853778,-153.0,0.00029342,30]
[390858639,1760179853787,-297.8851395,0.00029342,30]
[390858640,1760179853801,-588.4106815,0.00029342,30]
[390858641,1760179853811,-189.7226975,0.00029342,30]
[390858642,1760179853821,-297.8851395,0.00029342,30]
[390858643,1760179853831,-588.4106815,0.00029342,30]
[390858644,1760179853841,-153.0,0.00029342,30]
[390858645,1760179853851,-1016.76,0.00029348,2]
[390858646,1760179853860,-3237.59,0.00029417,2]
[390858647,1760179853870,-242.66491503,0.0002943,2]
[390858648,1760179853879,-399.64322454,0.00029451,2]
[390858649,1760179853888,-11994.78,0.00029484,12]
[390858650,1760179853898,-20386.48,0.00029484,12]
[390858651,1760179853908,-5000.0,0.00029604,5]
[390858652,1760179853917,-500.0,0.0002966,11]
[390858653,1760179853926,-1257.54198053,0.00029675,2]
[390858654,1760179853935,-399.64322454,0.00029689,2]
[390858655,1760179853945,-200.0,0.00029708,120]
[390858656,1760179853954,-195.0,0.0002973,24]
[390858657,1760179853964,-500.0,0.00029784,11]
[390858658,1760179853973,-500.0,0.00029784,11]
[390858659,1760179853983,-500.0,0.00029787,11]
[390858660,1760179853992,-250.0,0.000298,10]
[390858661,1760179854001,-652.8211548,0.00029877,24]
[390858662,1760179854012,-168.18277568,0.00029903,20]
[390858663,1760179854021,-800.0,0.00029916,2]
[390858664,1760179854031,-399.64322454,0.00029927,2]
[390858665,1760179854040,-168.24612147,0.00029927,2]
[390858666,1760179854050,-1257.54198054,0.00029931,2]
[390858667,1760179854060,-1000.0,0.00029999,28]
[390858668,1760179854070,-191.951,0.0003,2]
[390858669,1760179854082,-1000.0,0.0003,60]
[390858670,1760179854092,-214.66,0.00030026,2]
[390858671,1760179854101,-214.66,0.00030026,2]
[390858672,1760179854111,-214.66,0.00030026,2]
[390858673,1760179854121,-214.66,0.00030026,2]
[390858674,1760179854131,-214.66,0.00030026,2]
[390858675,1760179854140,-214.66,0.00030026,2]
[390858676,1760179854149,-214.66,0.00030026,2]
[390858677,1760179854162,-214.66,0.00030026,2]
[390858678,1760179854172,-214.66,0.00030026,2]
[390858679,1760179854182,-214.66,0.00030026,2]
[390858680,1760179854192,-151.0,0.00030027,30]
[390858681,1760179854202,-151.0,0.00030027,30]
[390858682,1760179854211,-151.0,0.00030027,30]
[390858683,1760179854220,-151.0,0.00030027,30]
[390858684,1760179854229,-175.96314372,0.00030027,30]
[390858685,1760179854239,-500.0,0.00030027,7]
[390858686,1760179854248,-304.84,0.00030027,10]
[390858687,1760179854258,-1554086.39003164,0.00030027,20]
[390858688,1760179854397,-1041.5700025,0.00030027,20]
[390858695,1760179854571,-300.0,0.00018322,2]
[390858696,1760179854582,-300.0,0.00018322,2]
[390858697,1760179854593,-300.0,0.00018322,2]
[390858698,1760179854603,-300.0,0.00018322,2]
[390858699,1760179854612,-300.0,0.00018322,2]
[390858700,1760179854622,-500.0,0.00024657,9]
[390858701,1760179854632,-500.0,0.00024657,9]
[390858702,1760179854642,-500.0,0.00024657,9]
[390858703,1760179854651,-303.070868,0.00030027,30]
[390858704,1760179854661,-303.070868,0.00030027,30]
[390858705,1760179854671,-303.070868,0.00030027,30]
[390858706,1760179854680,-151.0,0.00030027,30]
[390858707,1760179854690,-303.070868,0.00030027,30]
[390858708,1760179854699,-151.0,0.00030027,30]
[390858709,1760179854709,-303.070868,0.00030027,30]
[390858710,1760179854719,-151.0,0.00030027,30]
[390858711,1760179854728,-303.070868,0.00030027,30]
[390858712,1760179854737,-185959.24432475,0.00030027,20]
[390858713,1760179854771,-300.0,0.00018322,2]
[390858714,1760179854781,-2424.79085668,0.00030027,20]
[390858715,1760179854955,-3e-08,0.00030027,20]
[390858720,1760179855159,-300.0,0.00018322,2]
[390858721,1760179855169,-300.0,0.00018322,2]
[390858722,1760179855178,-300.0,0.00018322,2]
[390858723,1760179855188,-300.0,0.00018322,2]
[390858724,1760179855197,-3485.67,0.00024647,10]
[390858725,1760179855207,-543.39,0.00024657,9]
[390858726,1760179855216,-999.0,0.00026027,2]
[390858727,1760179855228,-798.46968181,0.00027123,4]
[390858728,1760179855239,-200.53031819,0.00027123,4]
[390858729,1760179855249,-260.56649442,0.00028219,6]
[390858730,1760179855447,-888.0993389,0.00018139,2]
[390858731,1760179855459,-4111.9006611,0.00018139,2]
[390858732,1760179855468,-500.0,0.00024657,9]
[390858733,1760179855479,-500.0,0.00024657,9]
[390858734,1760179855488,-500.0,0.00024657,9]
[390858735,1760179855497,-500.0,0.00024657,9]
[390858736,1760179855507,-433.54,0.00024657,9]
[390858737,1760179855517,-600.0,0.00025149,20]
[390858738,1760179855526,-720.0,0.00027664,30]
[390858739,1760179855535,-738.43350558,0.00028219,6]
[390858740,1760179855544,-150.0,0.00028697,2]
[390858741,1760179855556,-362.6057356,0.00029205,30]
[390858742,1760179855566,-999.0,0.00029315,8]
[390858743,1760179855575,-297.8851395,0.00029342,30]
[390858744,1760179855584,-229.04165954,0.00029342,30]
[390858758,1760180261770,-5000.0,0.00018199,10]
[390858759,1760180274928,-209.6088089,0.00018383,10]
[390858760,1760180276448,-4790.3911911,0.00018383,10]
[390858761,1760180276856,-319.01124994,0.00018756,2]
[390858762,1760180278736,-198.05981881,0.00018568,2]
[390858763,1760180293540,-4801.94018119,0.00018568,2]
[390858764,1760180293712,396.12963762,0.00018383,2]
[390858765,1760180293734,4603.87036238,0.00018383,2]
[390858766,1760180301669,5000.0,0.00018568,2]
[390858767,1760180308642,-300.0,0.00018755,2]
[390858768,1760180317306,5000.0,0.00018755,2]
[390858769,1760180325312,4400.01,0.00018755,2]
[390858770,1760180325334,599.99,0.00018755,2]
[390858771,1760180328829,-880.98875006,0.00018756,2]
[390858772,1760180328857,-1200.0,0.00018756,2]
[390858773,1760180339968,-346.02,0.00018971,2]
[390858774,1760180340686,5000.0,0.00018756,2]
[390858775,1760180348754,4307.97,0.00018971,2]
[390858776,1760180348776,692.03,0.00018971,2]
[390858777,1760180349767,376.93,0.00018887,2]
[390858778,1760180354991,-300.0,0.00019323,2]
[390858779,1760180355019,-300.0,0.00019323,2]
[390858780,1760180355045,-300.0,0.00019323,2]
[390858781,1760180364072,5000.0,0.00019323,2]
[390858782,1760180368777,3200.01,0.00019323,2]
[390858783,1760180368797,10000.01,0.00019323,2]
[390858784,1760180368818,7998.8112,0.00019323,2]
[390858785,1760180370896,726.6775192,0.00019224,2]
[390858786,1760180372116,1274.5212808,0.00019323,2]
[390858787,1760180372136,3725.4787192,0.00019323,2]
[390858788,1760180380143,-300.0,0.00019324,2]
[390858789,1760180380169,-300.0,0.00019324,2]
[390858790,1760180380196,-300.0,0.00019324,2]
[390858791,1760180380223,-300.0,0.00019324,2]
[390858792,1760180380250,-300.0,0.00019324,2]
[390858793,1760180380278,-300.0,0.00019324,2]
[390858794,1760180380310,-300.0,0.00019324,2]
[390858795,1760180380339,-300.0,0.00019324,2]
[390858796,1760180380367,-300.0,0.00019324,2]
[390858797,1760180380393,-300.0,0.00019324,2]
[390858798,1760180380418,-300.0,0.00019324,2]
[390858799,1760180380444,-300.0,0.00019324,2]
[390858800,1760180380642,-300.0,0.00019324,2]
[390858801,1760180380671,-300.0,0.00019324,2]
[390858802,1760180380702,-300.0,0.00019324,2]
[390858803,1760180387867,1000.01,0.00019324,2]
[390858804,1760180387891,3999.99,0.00019324,2]
[390858805,1760180395807,5000.0,0.00019324,2]
[390858806,1760180402075,150.0,0.00019323,2]
[390858807,1760180402132,300.0,0.00019323,2]
[390858808,1760180406196,200.0,0.00019324,2]
[390858809,1760180411318,350.02,0.00019324,2]
[390858810,1760180411341,4649.98,0.00019324,2]
[390858812,1760180419232,5000.0,0.00019324,2]
[390858813,1760180427490,-6588.45846497,0.00019324,2]
[390858814,1760180427565,-10000.01,0.00019324,2]
[390858815,1760180430811,350.03,0.00018724,2]
[390858816,1760180430974,22.1,0.00018724,2]